[Event "Titled Tuesday Blitz August 15 Early 2023"]
[White "Mesa Cruz, Juan Carlos"]
[Black "Hrescak, Ivana"]
[WhiteFideId "6423400"]
[BlackFideId "14613441"]
[WhiteElo "2419"]
[BlackElo "2246"]
[Result "0-1"]
[Round "8"]
[TimeControl "180+1"]
[Date "2023.08.15"]
[WhiteClock "0:00:00"]
[BlackClock "0:00:19"]
[Board "181"]

1. d4 {[%clk 0:01:19]}  d5 {[%clk 0:02:58]} 2. Nf3 {[%clk 0:01:18]}  Nf6 {[%clk 0:02:58]} 3. c4 {[%clk 0:01:19]}  c6 {[%clk 0:02:58]} 4. Nc3 {[%clk 0:01:19]}  dxc4 {[%clk 0:02:59]} 5. a4 {[%clk 0:01:19]}  Bf5 {[%clk 0:02:59]} 6. Ne5 {[%clk 0:01:20]}  Nbd7 {[%clk 0:02:58]} 7. Nxc4 {[%clk 0:01:20]}  Nb6 {[%clk 0:02:59]} 8. Ne5 {[%clk 0:01:20]}  a5 {[%clk 0:03:00]} 9. f3 {[%clk 0:01:20]}  Nfd7 {[%clk 0:02:59]} 10. Nxd7 {[%clk 0:01:12]}  Nxd7 {[%clk 0:02:55]} 11. e4 {[%clk 0:01:12]}  Bg6 {[%clk 0:02:52]} 12. Bc4 {[%clk 0:01:12]}  e5 {[%clk 0:02:39]} 13. d5 {[%clk 0:01:06]}  Qb6 {[%clk 0:02:30]} 14. dxc6 {[%clk 0:00:59]}  bxc6 {[%clk 0:02:28]} 15. Qe2 {[%clk 0:00:59]}  Bc5 {[%clk 0:02:26]} 16. Bg5 {[%clk 0:00:54]}  O-O {[%clk 0:01:59]} 17. Bh4 {[%clk 0:00:51]}  Bd4 {[%clk 0:01:51]} 18. Bf2 {[%clk 0:00:47]}  Rab8 {[%clk 0:01:39]} 19. Ra2 {[%clk 0:00:31]}  Rfd8 {[%clk 0:01:17]} 20. O-O {[%clk 0:00:30]}  Nc5 {[%clk 0:01:11]} 21. Bxd4 {[%clk 0:00:20]}  exd4 {[%clk 0:01:11]} 22. Nd1 {[%clk 0:00:19]}  Nb3 {[%clk 0:01:01]} 23. Bxb3 {[%clk 0:00:14]}  Qxb3 {[%clk 0:01:00]} 24. Ra3 {[%clk 0:00:15]}  Qb4 {[%clk 0:00:57]} 25. Qd3 {[%clk 0:00:07]}  f6 {[%clk 0:00:51]} 26. Ra1 {[%clk 0:00:05]}  Bf7 {[%clk 0:00:50]} 27. Rc1 {[%clk 0:00:06]}  c5 {[%clk 0:00:49]} 28. Nf2 {[%clk 0:00:05]}  c4 {[%clk 0:00:48]} 29. Qd1 {[%clk 0:00:04]}  Qxb2 {[%clk 0:00:46]} 30. f4 {[%clk 0:00:04]}  d3 {[%clk 0:00:42]} 31. e5 {[%clk 0:00:04]}  fxe5 {[%clk 0:00:42]} 32. fxe5 {[%clk 0:00:04]}  Qxe5 {[%clk 0:00:41]} 33. Qf3 {[%clk 0:00:04]}  Qd5 {[%clk 0:00:38]} 34. Qg3 {[%clk 0:00:03]}  Rb6 {[%clk 0:00:33]} 35. Ng4 {[%clk 0:00:03]}  Rg6 {[%clk 0:00:29]} 36. Qf2 {[%clk 0:00:02]}  Rxg4 {[%clk 0:00:28]} 37. Rce1 {[%clk 0:00:02]}  d2 {[%clk 0:00:23]} 38. Rd1 {[%clk 0:00:01]}  c3 {[%clk 0:00:22]} 39. Qf3 {[%clk 0:00:01]}  Qxf3 {[%clk 0:00:21]} 40. Rxf3 {[%clk 0:00:00]}  Rc4 {[%clk 0:00:19]} 0-1


[Site "https://www.chess.com"]

[Event "Titled Tuesday Blitz August 15 Early 2023"]
[White "Bortnyk, Olexandr"]
[Black "Nihal Sarin"]
[WhiteFideId "14120828"]
[BlackFideId "25092340"]
[WhiteElo "3103"]
[BlackElo "3152"]
[Result "1/2-1/2"]
[Round "9"]
[TimeControl "180+1"]
[Date "2023.08.15"]
[WhiteClock "0:00:05"]
[BlackClock "0:00:10"]
[Board "1"]

1. d4 {[%clk 0:03:00]}  a6 {[%clk 0:03:00]} 2. e4 {[%clk 0:02:59]}  e6 {[%clk 0:02:49]} 3. c3 {[%clk 0:02:54]}  b5 {[%clk 0:02:44]} 4. Be3 {[%clk 0:02:53]}  Bb7 {[%clk 0:02:45]} 5. Bd3 {[%clk 0:02:53]}  Nf6 {[%clk 0:02:44]} 6. Nd2 {[%clk 0:02:53]}  Be7 {[%clk 0:02:43]} 7. f4 {[%clk 0:02:53]}  d6 {[%clk 0:02:34]} 8. Ngf3 {[%clk 0:02:53]}  O-O {[%clk 0:02:33]} 9. h3 {[%clk 0:02:49]}  c5 {[%clk 0:02:33]} 10. O-O {[%clk 0:02:48]}  cxd4 {[%clk 0:02:34]} 11. cxd4 {[%clk 0:02:48]}  Nbd7 {[%clk 0:02:34]} 12. Qe1 {[%clk 0:02:39]}  Rc8 {[%clk 0:02:34]} 13. Qg3 {[%clk 0:02:30]}  Nb6 {[%clk 0:02:33]} 14. e5 {[%clk 0:02:13]}  Nfd5 {[%clk 0:02:29]} 15. Bf2 {[%clk 0:02:08]}  Nb4 {[%clk 0:02:25]} 16. Be4 {[%clk 0:01:54]}  Bxe4 {[%clk 0:02:25]} 17. Nxe4 {[%clk 0:01:55]}  N6d5 {[%clk 0:02:26]} 18. Nfd2 {[%clk 0:01:33]}  Kh8 {[%clk 0:01:42]} 19. a3 {[%clk 0:01:32]}  Nc6 {[%clk 0:01:41]} 20. Rac1 {[%clk 0:01:31]}  f5 {[%clk 0:01:40]} 21. exf6 {[%clk 0:01:10]}  Bxf6 {[%clk 0:01:17]} 22. Nxf6 {[%clk 0:01:06]}  Qxf6 {[%clk 0:01:16]} 23. Ne4 {[%clk 0:01:05]}  Nxf4 {[%clk 0:00:33]} 24. Nxf6 {[%clk 0:00:57]}  Ne2+ {[%clk 0:00:34]} 25. Kh2 {[%clk 0:00:58]}  Nxg3 {[%clk 0:00:34]} 26. Bxg3 {[%clk 0:00:57]}  gxf6 {[%clk 0:00:35]} 27. Bxd6 {[%clk 0:00:52]}  Rfd8 {[%clk 0:00:35]} 28. Bg3 {[%clk 0:00:43]}  Kg7 {[%clk 0:00:34]} 29. Bh4 {[%clk 0:00:43]}  Rf8 {[%clk 0:00:34]} 30. Rc5 {[%clk 0:00:37]}  Ne7 {[%clk 0:00:19]} 31. Rxc8 {[%clk 0:00:37]}  Nxc8 {[%clk 0:00:20]} 32. Rc1 {[%clk 0:00:38]}  Ne7 {[%clk 0:00:20]} 33. Rc7 {[%clk 0:00:37]}  Kf7 {[%clk 0:00:21]} 34. Ra7 {[%clk 0:00:32]}  Rd8 {[%clk 0:00:21]} 35. Rxa6 {[%clk 0:00:32]}  Rxd4 {[%clk 0:00:21]} 36. Bf2 {[%clk 0:00:31]}  Rd2 {[%clk 0:00:20]} 37. Bc5 {[%clk 0:00:31]}  Nd5 {[%clk 0:00:21]} 38. b4 {[%clk 0:00:27]}  Nf4 {[%clk 0:00:14]} 39. Be3 {[%clk 0:00:21]}  Rxg2+ {[%clk 0:00:06]} 40. Kh1 {[%clk 0:00:22]}  Rg3 {[%clk 0:00:07]} 41. Bxf4 {[%clk 0:00:22]}  Rxh3+ {[%clk 0:00:08]} 42. Kg2 {[%clk 0:00:23]}  Rb3 {[%clk 0:00:08]} 43. Bd6 {[%clk 0:00:16]}  e5 {[%clk 0:00:08]} 44. Bc5 {[%clk 0:00:15]}  h5 {[%clk 0:00:08]} 45. a4 {[%clk 0:00:08]}  bxa4 {[%clk 0:00:09]} 46. Rxa4 {[%clk 0:00:09]}  Kg6 {[%clk 0:00:07]} 47. Ra6 {[%clk 0:00:09]}  h4 {[%clk 0:00:05]} 48. Be7 {[%clk 0:00:09]}  Kh5 {[%clk 0:00:06]} 49. Bxf6 {[%clk 0:00:08]}  Rxb4 {[%clk 0:00:06]} 50. Bxe5 {[%clk 0:00:08]}  Rb3 {[%clk 0:00:06]} 51. Ra8 {[%clk 0:00:06]}  Kg4 {[%clk 0:00:07]} 52. Ra4+ {[%clk 0:00:05]}  Kf5 {[%clk 0:00:07]} 53. Bc7 {[%clk 0:00:05]}  h3+ {[%clk 0:00:08]} 54. Kh2 {[%clk 0:00:05]}  Rc3 {[%clk 0:00:09]} 55. Bg3 {[%clk 0:00:05]}  Rb3 {[%clk 0:00:09]} 56. Kxh3 {[%clk 0:00:06]}  Rd3 {[%clk 0:00:09]} 57. Rf4+ {[%clk 0:00:05]}  Ke6 {[%clk 0:00:09]} 58. Kg4 {[%clk 0:00:06]}  Re3 {[%clk 0:00:09]} 59. Bf2 {[%clk 0:00:06]}  Re2 {[%clk 0:00:10]} 60. Bd4 {[%clk 0:00:06]}  Kd5 {[%clk 0:00:09]} 61. Kf3 {[%clk 0:00:06]}  Ra2 {[%clk 0:00:09]} 62. Be3 {[%clk 0:00:06]}  Ra1 {[%clk 0:00:10]} 63. Rf5+ {[%clk 0:00:06]}  Ke6 {[%clk 0:00:10]} 64. Rh5 {[%clk 0:00:07]}  Ra4 {[%clk 0:00:10]} 65. Bc5 {[%clk 0:00:07]}  Rc4 {[%clk 0:00:09]} 66. Ke3 {[%clk 0:00:07]}  Ra4 {[%clk 0:00:10]} 67. Bd4 {[%clk 0:00:07]}  Ra2 {[%clk 0:00:10]} 68. Kf4 {[%clk 0:00:07]}  Re2 {[%clk 0:00:10]} 69. Be3 {[%clk 0:00:07]}  Re1 {[%clk 0:00:09]} 70. Ke4 {[%clk 0:00:08]}  Re2 {[%clk 0:00:10]} 71. Rh6+ {[%clk 0:00:08]}  Ke7 {[%clk 0:00:10]} 72. Kf4 {[%clk 0:00:08]}  Kd7 {[%clk 0:00:11]} 73. Ra6 {[%clk 0:00:05]}  Re1 {[%clk 0:00:10]} 74. Ra3 {[%clk 0:00:06]}  Ke6 {[%clk 0:00:08]} 75. Ke4 {[%clk 0:00:06]}  Re2 {[%clk 0:00:09]} 76. Rc3 {[%clk 0:00:05]}  Re1 {[%clk 0:00:09]} 77. Rc6+ {[%clk 0:00:05]}  Kd7 {[%clk 0:00:09]} 78. Rc2 {[%clk 0:00:06]}  Ke6 {[%clk 0:00:10]} 79. Kd3 {[%clk 0:00:05]}  Kd5 {[%clk 0:00:08]} 80. Rc5+ {[%clk 0:00:05]}  Ke6 {[%clk 0:00:09]} 81. Ra5 {[%clk 0:00:06]}  Kd6 {[%clk 0:00:08]} 82. Bf4+ {[%clk 0:00:05]}  Ke6 {[%clk 0:00:08]} 83. Ra8 {[%clk 0:00:06]}  Kd5 {[%clk 0:00:07]} 84. Rd8+ {[%clk 0:00:06]}  Kc6 {[%clk 0:00:08]} 85. Rc8+ {[%clk 0:00:03]}  Kd5 {[%clk 0:00:08]} 86. Rh8 {[%clk 0:00:04]}  Rd1+ {[%clk 0:00:08]} 87. Bd2 {[%clk 0:00:04]}  Kd6 {[%clk 0:00:07]} 88. Rh2 {[%clk 0:00:04]}  Ke6 {[%clk 0:00:07]} 89. Ke4 {[%clk 0:00:04]}  Ra1 {[%clk 0:00:08]} 90. Rh6+ {[%clk 0:00:04]}  Kd7 {[%clk 0:00:08]} 91. Bc3 {[%clk 0:00:03]}  Rd1 {[%clk 0:00:09]} 92. Bd4 {[%clk 0:00:03]}  Kd8 {[%clk 0:00:04]} 93. Kd5 {[%clk 0:00:03]}  Kd7 {[%clk 0:00:05]} 94. Rh7+ {[%clk 0:00:03]}  Kd8 {[%clk 0:00:05]} 95. Ke5 {[%clk 0:00:03]}  Kc8 {[%clk 0:00:06]} 96. Bc5 {[%clk 0:00:03]}  Rd7 {[%clk 0:00:07]} 97. Rh8+ {[%clk 0:00:03]}  Kb7 {[%clk 0:00:07]} 98. Bd6 {[%clk 0:00:03]}  Rg7 {[%clk 0:00:07]} 99. Rb8+ {[%clk 0:00:02]}  Kc6 {[%clk 0:00:07]} 100. Rc8+ {[%clk 0:00:03]}  Kb5 {[%clk 0:00:08]} 101. Rc1 {[%clk 0:00:03]}  Rg5+ {[%clk 0:00:08]} 102. Kd4 {[%clk 0:00:04]}  Rh5 {[%clk 0:00:08]} 103. Be5 {[%clk 0:00:04]}  Rh4+ {[%clk 0:00:08]} 104. Kd5 {[%clk 0:00:05]}  Rh5 {[%clk 0:00:09]} 105. Rb1+ {[%clk 0:00:05]}  Ka5 {[%clk 0:00:10]} 106. Rb8 {[%clk 0:00:05]} 1/2-1/2


[Site "https://www.chess.com"]

[Event "Titled Tuesday Blitz August 15 Early 2023"]
[White "Aronian, Levon"]
[Black "Korobov, Anton"]
[WhiteFideId "13300474"]
[BlackFideId "14105730"]
[WhiteElo "3054"]
[BlackElo "3029"]
[Result "1-0"]
[Round "9"]
[TimeControl "180+1"]
[Date "2023.08.15"]
[WhiteClock "0:00:06"]
[BlackClock "0:00:01"]
[Board "3"]

1. e4 {[%clk 0:03:00]}  c5 {[%clk 0:02:59]} 2. Nf3 {[%clk 0:03:01]}  d6 {[%clk 0:02:58]} 3. Bc4 {[%clk 0:03:01]}  Nf6 {[%clk 0:02:57]} 4. d3 {[%clk 0:03:02]}  Nc6 {[%clk 0:02:57]} 5. O-O {[%clk 0:03:02]}  Bg4 {[%clk 0:02:57]} 6. h3 {[%clk 0:03:02]}  Bh5 {[%clk 0:02:58]} 7. g4 {[%clk 0:03:02]}  Bg6 {[%clk 0:02:57]} 8. Nh2 {[%clk 0:03:02]}  e5 {[%clk 0:02:38]} 9. Nc3 {[%clk 0:03:01]}  Be7 {[%clk 0:02:36]} 10. f4 {[%clk 0:03:00]}  exf4 {[%clk 0:02:34]} 11. Bxf4 {[%clk 0:03:01]}  h5 {[%clk 0:02:26]} 12. g5 {[%clk 0:02:51]}  Nd7 {[%clk 0:02:26]} 13. h4 {[%clk 0:02:50]}  Nde5 {[%clk 0:02:26]} 14. Bb3 {[%clk 0:02:48]}  Qd7 {[%clk 0:02:08]} 15. Nd5 {[%clk 0:02:33]}  O-O-O {[%clk 0:01:48]} 16. c3 {[%clk 0:02:25]}  Qh3 {[%clk 0:01:31]} 17. Bxe5 {[%clk 0:01:19]}  dxe5 {[%clk 0:01:30]} 18. Qe1 {[%clk 0:01:19]}  f6 {[%clk 0:01:05]} 19. Rf3 {[%clk 0:00:50]}  Qd7 {[%clk 0:01:05]} 20. gxf6 {[%clk 0:00:43]}  gxf6 {[%clk 0:01:06]} 21. Qf2 {[%clk 0:00:43]}  Bf7 {[%clk 0:00:53]} 22. Rf1 {[%clk 0:00:31]}  Be6 {[%clk 0:00:49]} 23. Kh1 {[%clk 0:00:26]}  Rhg8 {[%clk 0:00:27]} 24. Rg1 {[%clk 0:00:21]}  Rxg1+ {[%clk 0:00:25]} 25. Qxg1 {[%clk 0:00:21]}  Bg4 {[%clk 0:00:24]} 26. Nxg4 {[%clk 0:00:15]}  hxg4 {[%clk 0:00:24]} 27. Rg3 {[%clk 0:00:15]}  f5 {[%clk 0:00:22]} 28. exf5 {[%clk 0:00:12]}  Qxf5 {[%clk 0:00:20]} 29. Nxe7+ {[%clk 0:00:09]}  Nxe7 {[%clk 0:00:20]} 30. Qxc5+ {[%clk 0:00:10]}  Nc6 {[%clk 0:00:20]} 31. Kg2 {[%clk 0:00:04]}  Kc7 {[%clk 0:00:13]} 32. Qf2 {[%clk 0:00:03]}  Qh5 {[%clk 0:00:11]} 33. Qf7+ {[%clk 0:00:03]}  Qxf7 {[%clk 0:00:11]} 34. Bxf7 {[%clk 0:00:04]}  e4 {[%clk 0:00:11]} 35. d4 {[%clk 0:00:04]}  Rf8 {[%clk 0:00:04]} 36. Bg6 {[%clk 0:00:04]}  Rf4 {[%clk 0:00:04]} 37. Re3 {[%clk 0:00:05]}  Ne7 {[%clk 0:00:04]} 38. Bxe4 {[%clk 0:00:05]}  Kd6 {[%clk 0:00:03]} 39. Kg3 {[%clk 0:00:05]}  Rf1 {[%clk 0:00:03]} 40. Kxg4 {[%clk 0:00:06]}  Rg1+ {[%clk 0:00:01]} 41. Kh3 {[%clk 0:00:06]} 1-0


[Site "https://www.chess.com"]

[Event "Titled Tuesday Blitz August 15 Early 2023"]
[White "Hakobyan, Aram"]
[Black "Firouzja, Alireza"]
[WhiteFideId "13306677"]
[BlackFideId "12573981"]
[WhiteElo "2959"]
[BlackElo "3102"]
[Result "0-1"]
[Round "9"]
[TimeControl "180+1"]
[Date "2023.08.15"]
[WhiteClock "0:00:00"]
[BlackClock "0:00:09"]
[Board "5"]

1. e4 {[%clk 0:03:00]}  c5 {[%clk 0:02:56]} 2. Nf3 {[%clk 0:03:01]}  d6 {[%clk 0:02:56]} 3. Bb5+ {[%clk 0:02:59]}  Nd7 {[%clk 0:02:56]} 4. g4 {[%clk 0:02:59]}  a6 {[%clk 0:02:48]} 5. Be2 {[%clk 0:02:59]}  b5 {[%clk 0:02:34]} 6. a4 {[%clk 0:02:52]}  b4 {[%clk 0:02:35]} 7. d4 {[%clk 0:02:48]}  cxd4 {[%clk 0:02:33]} 8. Nxd4 {[%clk 0:02:49]}  Bb7 {[%clk 0:02:33]} 9. f3 {[%clk 0:02:46]}  e6 {[%clk 0:02:29]} 10. g5 {[%clk 0:02:32]}  d5 {[%clk 0:02:24]} 11. exd5 {[%clk 0:02:30]}  Bxd5 {[%clk 0:02:24]} 12. c4 {[%clk 0:02:28]}  Bb7 {[%clk 0:02:17]} 13. Be3 {[%clk 0:02:28]}  Bc5 {[%clk 0:02:13]} 14. Nd2 {[%clk 0:01:12]}  e5 {[%clk 0:02:12]} 15. Nf5 {[%clk 0:01:13]}  Bxe3 {[%clk 0:02:12]} 16. Nxe3 {[%clk 0:01:14]}  Qxg5 {[%clk 0:02:12]} 17. Ndf1 {[%clk 0:01:05]}  e4 {[%clk 0:01:38]} 18. fxe4 {[%clk 0:01:03]}  Ngf6 {[%clk 0:01:28]} 19. Nd5 {[%clk 0:00:57]}  Nxe4 {[%clk 0:01:25]} 20. Qd4 {[%clk 0:00:53]}  Bxd5 {[%clk 0:01:20]} 21. cxd5 {[%clk 0:00:53]}  Ndf6 {[%clk 0:01:09]} 22. Rg1 {[%clk 0:00:50]}  Qh4+ {[%clk 0:00:36]} 23. Ng3 {[%clk 0:00:50]}  Rc8 {[%clk 0:00:15]} 24. d6 {[%clk 0:00:15]}  O-O {[%clk 0:00:15]} 25. d7 {[%clk 0:00:11]}  Rcd8 {[%clk 0:00:15]} 26. O-O-O {[%clk 0:00:10]}  Rxd7 {[%clk 0:00:16]} 27. Qxb4 {[%clk 0:00:09]}  Rc8+ {[%clk 0:00:12]} 28. Bc4 {[%clk 0:00:08]}  Nd6 {[%clk 0:00:09]} 29. b3 {[%clk 0:00:06]}  Nxc4 {[%clk 0:00:10]} 30. Nf5 {[%clk 0:00:00]}  Ne5+ {[%clk 0:00:09]} 0-1


[Site "https://www.chess.com"]

[Event "Titled Tuesday Blitz August 15 Early 2023"]
[White "Lazavik, Denis"]
[Black "Kukhmazov, Arsen"]
[WhiteFideId "13515110"]
[BlackFideId "24108260"]
[WhiteElo "3045"]
[BlackElo "2853"]
[Result "0-1"]
[Round "9"]
[TimeControl "180+1"]
[Date "2023.08.15"]
[WhiteClock "0:00:04"]
[BlackClock "0:00:11"]
[Board "14"]

1. d4 {[%clk 0:03:00]}  d5 {[%clk 0:03:00]} 2. c4 {[%clk 0:03:01]}  c6 {[%clk 0:03:01]} 3. Nf3 {[%clk 0:03:01]}  Nf6 {[%clk 0:03:02]} 4. Qc2 {[%clk 0:03:02]}  g6 {[%clk 0:03:02]} 5. cxd5 {[%clk 0:03:01]}  cxd5 {[%clk 0:03:03]} 6. Bf4 {[%clk 0:03:01]}  Nc6 {[%clk 0:02:53]} 7. Nc3 {[%clk 0:03:01]}  a6 {[%clk 0:02:53]} 8. e3 {[%clk 0:03:01]}  Bg7 {[%clk 0:02:54]} 9. Be2 {[%clk 0:03:00]}  O-O {[%clk 0:02:54]} 10. O-O {[%clk 0:02:59]}  Bf5 {[%clk 0:02:27]} 11. Qb3 {[%clk 0:02:59]}  Na5 {[%clk 0:02:28]} 12. Qb4 {[%clk 0:02:59]}  Re8 {[%clk 0:02:21]} 13. Rfc1 {[%clk 0:02:57]}  Bf8 {[%clk 0:02:11]} 14. Qa4 {[%clk 0:02:55]}  b5 {[%clk 0:02:07]} 15. Qd1 {[%clk 0:02:55]}  Qb6 {[%clk 0:01:58]} 16. h3 {[%clk 0:02:51]}  h5 {[%clk 0:01:47]} 17. Ne5 {[%clk 0:02:50]}  Rec8 {[%clk 0:01:45]} 18. g4 {[%clk 0:02:48]}  hxg4 {[%clk 0:01:46]} 19. hxg4 {[%clk 0:02:48]}  Be6 {[%clk 0:01:47]} 20. b3 {[%clk 0:02:45]}  Nc6 {[%clk 0:01:38]} 21. Nd3 {[%clk 0:02:45]}  Ne4 {[%clk 0:01:19]} 22. Nxe4 {[%clk 0:02:27]}  dxe4 {[%clk 0:01:20]} 23. Nc5 {[%clk 0:02:28]}  Bd5 {[%clk 0:01:21]} 24. a4 {[%clk 0:02:27]}  Rd8 {[%clk 0:01:07]} 25. axb5 {[%clk 0:02:04]}  axb5 {[%clk 0:01:08]} 26. Rxa8 {[%clk 0:02:05]}  Rxa8 {[%clk 0:01:08]} 27. Nd7 {[%clk 0:02:05]}  Qa5 {[%clk 0:00:45]} 28. Rc5 {[%clk 0:01:54]}  e6 {[%clk 0:00:45]} 29. Nxf8 {[%clk 0:01:36]}  Kxf8 {[%clk 0:00:46]} 30. Bxb5 {[%clk 0:01:28]}  Nb4 {[%clk 0:00:46]} 31. Ba4 {[%clk 0:01:21]}  Qd8 {[%clk 0:00:38]} 32. Bg3 {[%clk 0:00:59]}  Nd3 {[%clk 0:00:39]} 33. Rc3 {[%clk 0:00:55]}  Qg5 {[%clk 0:00:26]} 34. Bb5 {[%clk 0:00:52]}  Kg8 {[%clk 0:00:25]} 35. Bxd3 {[%clk 0:00:35]}  exd3 {[%clk 0:00:26]} 36. Rxd3 {[%clk 0:00:36]}  Ra2 {[%clk 0:00:12]} 37. Rc3 {[%clk 0:00:19]}  Qh6 {[%clk 0:00:12]} 38. Bh2 {[%clk 0:00:19]}  Qh3 {[%clk 0:00:12]} 39. Qf1 {[%clk 0:00:07]}  Qf3 {[%clk 0:00:11]} 40. Rc8+ {[%clk 0:00:04]}  Kh7 {[%clk 0:00:11]} 0-1


[Site "https://www.chess.com"]

[Event "Titled Tuesday Blitz August 15 Early 2023"]
[White "Duda, Jan-Krzysztof"]
[Black "Yanchenko, Roman"]
[WhiteFideId "1170546"]
[BlackFideId "4137329"]
[WhiteElo "3034"]
[BlackElo "2792"]
[Result "1-0"]
[Round "9"]
[TimeControl "180+1"]
[Date "2023.08.15"]
[WhiteClock "0:01:30"]
[BlackClock "0:00:02"]
[Board "16"]

1. e4 {[%clk 0:03:00]}  e6 {[%clk 0:02:58]} 2. c3 {[%clk 0:02:54]}  d5 {[%clk 0:02:58]} 3. e5 {[%clk 0:02:54]}  c5 {[%clk 0:02:58]} 4. f4 {[%clk 0:02:54]}  Qb6 {[%clk 0:02:45]} 5. Nf3 {[%clk 0:02:53]}  h5 {[%clk 0:02:43]} 6. d4 {[%clk 0:02:51]}  Bd7 {[%clk 0:02:43]} 7. Bd3 {[%clk 0:02:45]}  Bb5 {[%clk 0:02:40]} 8. f5 {[%clk 0:02:44]}  Bxd3 {[%clk 0:02:06]} 9. Qxd3 {[%clk 0:02:45]}  c4 {[%clk 0:02:04]} 10. Qc2 {[%clk 0:02:43]}  Ne7 {[%clk 0:01:52]} 11. fxe6 {[%clk 0:02:42]}  Qxe6 {[%clk 0:01:47]} 12. O-O {[%clk 0:02:43]}  Qg6 {[%clk 0:01:36]} 13. Qe2 {[%clk 0:02:40]}  Nbc6 {[%clk 0:01:35]} 14. Ng5 {[%clk 0:02:38]}  Nd8 {[%clk 0:01:35]} 15. b3 {[%clk 0:02:38]}  cxb3 {[%clk 0:01:27]} 16. axb3 {[%clk 0:02:36]}  h4 {[%clk 0:01:27]} 17. Na3 {[%clk 0:02:33]}  Rh5 {[%clk 0:01:11]} 18. Nb5 {[%clk 0:02:31]}  Kd7 {[%clk 0:01:12]} 19. Nxf7 {[%clk 0:02:24]}  Ne6 {[%clk 0:00:25]} 20. Nbd6 {[%clk 0:02:22]}  a6 {[%clk 0:00:21]} 21. Nxb7 {[%clk 0:02:16]}  h3 {[%clk 0:00:20]} 22. Rf2 {[%clk 0:02:15]}  Nc6 {[%clk 0:00:19]} 23. Qf3 {[%clk 0:02:02]}  hxg2 {[%clk 0:00:18]} 24. Qxd5+ {[%clk 0:02:00]}  Kc7 {[%clk 0:00:19]} 25. Nbd6 {[%clk 0:01:46]}  Rxh2 {[%clk 0:00:18]} 26. Rxg2 {[%clk 0:01:46]}  Rxg2+ {[%clk 0:00:17]} 27. Qxg2 {[%clk 0:01:46]}  Qxg2+ {[%clk 0:00:08]} 28. Kxg2 {[%clk 0:01:47]}  Ncxd4 {[%clk 0:00:04]} 29. cxd4 {[%clk 0:01:46]}  Nxd4 {[%clk 0:00:05]} 30. Be3 {[%clk 0:01:39]}  Ne6 {[%clk 0:00:03]} 31. Kf3 {[%clk 0:01:36]}  Kd7 {[%clk 0:00:02]} 32. Ke4 {[%clk 0:01:36]}  Be7 {[%clk 0:00:02]} 33. Kf5 {[%clk 0:01:34]}  Nc7 {[%clk 0:00:02]} 34. Rd1 {[%clk 0:01:33]}  Rf8 {[%clk 0:00:01]} 35. e6+ {[%clk 0:01:30]}  Kc6 {[%clk 0:00:02]} 36. Rc1+ {[%clk 0:01:29]}  Kd5 {[%clk 0:00:02]} 37. Rc5# {[%clk 0:01:30]} 1-0


[Site "https://www.chess.com"]

[Event "Titled Tuesday Blitz August 15 Early 2023"]
[White "Rustemov, Alexander"]
[Black "Sadhwani, Raunak"]
[WhiteFideId "4119002"]
[BlackFideId "35093487"]
[WhiteElo "2776"]
[BlackElo "2998"]
[Result "0-1"]
[Round "9"]
[TimeControl "180+1"]
[Date "2023.08.15"]
[WhiteClock "0:00:00"]
[BlackClock "0:00:42"]
[Board "18"]

1. d4 {[%clk 0:02:59]}  Nf6 {[%clk 0:02:59]} 2. c4 {[%clk 0:03:00]}  g6 {[%clk 0:02:59]} 3. Nf3 {[%clk 0:03:00]}  Bg7 {[%clk 0:03:00]} 4. g3 {[%clk 0:03:01]}  O-O {[%clk 0:03:00]} 5. Bg2 {[%clk 0:03:01]}  d6 {[%clk 0:02:59]} 6. Nc3 {[%clk 0:03:02]}  c6 {[%clk 0:02:57]} 7. O-O {[%clk 0:03:02]}  Bf5 {[%clk 0:02:57]} 8. Nh4 {[%clk 0:03:02]}  Be6 {[%clk 0:02:57]} 9. d5 {[%clk 0:03:02]}  cxd5 {[%clk 0:02:51]} 10. cxd5 {[%clk 0:03:03]}  Bd7 {[%clk 0:02:51]} 11. Be3 {[%clk 0:03:04]}  Na6 {[%clk 0:02:48]} 12. Bd4 {[%clk 0:03:04]}  Rc8 {[%clk 0:02:47]} 13. e4 {[%clk 0:03:03]}  Nc5 {[%clk 0:02:46]} 14. Re1 {[%clk 0:03:02]}  a5 {[%clk 0:02:46]} 15. f4 {[%clk 0:02:56]}  b5 {[%clk 0:02:37]} 16. e5 {[%clk 0:02:55]}  Ng4 {[%clk 0:02:32]} 17. h3 {[%clk 0:02:54]}  Nh6 {[%clk 0:02:32]} 18. g4 {[%clk 0:02:46]}  b4 {[%clk 0:02:23]} 19. Ne4 {[%clk 0:02:21]}  Nxe4 {[%clk 0:02:20]} 20. Bxe4 {[%clk 0:02:19]}  e6 {[%clk 0:02:19]} 21. g5 {[%clk 0:02:10]}  dxe5 {[%clk 0:01:45]} 22. gxh6 {[%clk 0:01:58]}  Bf6 {[%clk 0:01:32]} 23. Bxe5 {[%clk 0:01:33]}  Bxe5 {[%clk 0:01:26]} 24. fxe5 {[%clk 0:01:32]}  Qxh4 {[%clk 0:01:25]} 25. Qg4 {[%clk 0:01:22]}  Qxh6 {[%clk 0:01:22]} 26. d6 {[%clk 0:01:22]}  Qd2 {[%clk 0:01:15]} 27. Re2 {[%clk 0:00:51]}  Qd4+ {[%clk 0:01:13]} 28. Kh1 {[%clk 0:00:50]}  Rc5 {[%clk 0:01:07]} 29. Bf3 {[%clk 0:00:45]}  Qxg4 {[%clk 0:00:58]} 30. Bxg4 {[%clk 0:00:42]}  Bc6+ {[%clk 0:00:54]} 31. Kh2 {[%clk 0:00:42]}  h5 {[%clk 0:00:54]} 32. Bxh5 {[%clk 0:00:39]}  gxh5 {[%clk 0:00:55]} 33. Rg1+ {[%clk 0:00:38]}  Kh7 {[%clk 0:00:55]} 34. Rg5 {[%clk 0:00:32]}  f6 {[%clk 0:00:51]} 35. Rxh5+ {[%clk 0:00:11]}  Kg6 {[%clk 0:00:52]} 36. Rh4 {[%clk 0:00:11]}  Rxe5 {[%clk 0:00:51]} 37. Rc2 {[%clk 0:00:10]}  Bd7 {[%clk 0:00:49]} 38. Rg2+ {[%clk 0:00:07]}  Rg5 {[%clk 0:00:49]} 39. Rc2 {[%clk 0:00:04]}  e5 {[%clk 0:00:43]} 40. Rc7 {[%clk 0:00:05]}  Rf7 {[%clk 0:00:43]} 41. Rh8 {[%clk 0:00:04]}  Kf5 {[%clk 0:00:42]} 42. h4 {[%clk 0:00:00]}  Rgg7 {[%clk 0:00:42]} 0-1


[Site "https://www.chess.com"]